bitfinex/quotes_BTCUSD_20240906
["timestamp","ask_amount","ask_price","bid_price","bid_amount"]
[1725630832728,0.889047,56240.0,56239.0,0.001632]
[1725630832966,1.345665,56240.0,56239.0,0.009632]
[1725630833211,1.346665,56240.0,56239.0,0.018632]
[1725630833819,2.28964465,56240.0,56239.0,0.009632]
[1725630833920,1.48976823,56240.0,56239.0,0.009632]
[1725630834145,1.00765023,56240.0,56239.0,0.001632]
[1725630834396,1.36626823,56240.0,56239.0,0.001632]
[1725630834903,1.36326823,56240.0,56239.0,0.001632]
[1725630835156,0.12860323,56240.0,56239.0,0.002632]
[1725630835402,0.01960323,56240.0,56239.0,0.179444]
[1725630835629,0.01860323,56240.0,56239.0,0.05514]
[1725630835874,0.02160323,56240.0,56239.0,0.001632]
[1725630836109,0.01860323,56240.0,56239.0,0.001632]
[1725630836600,0.01960323,56240.0,56239.0,0.001632]
[1725630836844,0.01960323,56240.0,56239.0,0.0178052]
[1725630837065,0.90864823,56240.0,56239.0,0.001632]
[1725630837979,1.26526623,56240.0,56239.0,0.001632]
[1725630838226,1.61888423,56240.0,56239.0,0.001632]
[1725630838464,1.26326623,56240.0,56239.0,0.001632]
[1725630838707,1.26326623,56240.0,56239.0,0.006632]
[1725630838708,1.26526623,56240.0,56239.0,0.006632]
[1725630838929,1.26326623,56240.0,56239.0,0.006632]
[1725630839157,0.55203023,56240.0,56239.0,0.001632]
[1725630839380,0.55303023,56240.0,56239.0,0.002632]
[1725630839605,0.90764823,56240.0,56239.0,0.002632]
[1725630839837,1.36526623,56240.0,56239.0,0.001632]
[1725630840761,1.99628423,56240.0,56239.0,0.001632]
[1725630841031,2.06429355,56240.0,56239.0,0.001632]
[1725630841279,1.70867555,56240.0,56239.0,0.001632]
[1725630841519,1.49176623,56240.0,56239.0,0.001632]
[1725630841760,2.25440869,56240.0,56239.0,0.004632]
[1725630841999,1.254995,56225.0,56224.0,0.001632]
[1725630842247,2.07496642,56225.0,56224.0,1e-06]
[1725630842485,2.07496642,56225.0,56200.0,0.52650515]
[1725630842486,1.394849,56218.0,56200.0,0.52650515]
[1725630842726,2.29486442,56218.0,56200.0,0.52650515]
[1725630842957,2.31786442,56218.0,56200.0,0.52650515]
[1725630843203,2.31786442,56218.0,56195.0,0.15464]
[1725630843204,2.32786442,56218.0,56195.0,0.15464]
[1725630843452,2.80948304,56218.0,56201.0,0.52650515]
[1725630843690,2.29960642,56206.0,56195.0,0.00164]
[1725630843955,1.68967342,56206.0,56202.0,0.52650515]
[1725630844185,1.78967342,56206.0,56195.0,0.00164]
[1725630844928,1.81267342,56206.0,56195.0,0.00164]
[1725630845181,2.19850642,56206.0,56195.0,0.00164]
[1725630845417,2.94123056,56206.0,56195.0,0.00164]
[1725630845651,2.82087335,56206.0,56195.0,0.00164]
[1725630845871,2.81853756,56206.0,56195.0,0.00164]
[1725630846145,3.24215335,56206.0,56195.0,0.00164]
[1725630846387,2.73083756,56206.0,56195.0,0.00164]
[1725630846651,3.20178756,56206.0,56195.0,0.00164]
[1725630846886,1.175815,56204.0,56203.0,1.9e-07]
[1725630847133,1.98693996,56204.0,56203.0,1.9e-07]
[1725630847607,1.98793996,56204.0,56203.0,1.9e-07]
[1725630847839,2.34378596,56204.0,56203.0,1.9e-07]
[1725630848062,2.39259429,56204.0,56203.0,1.9e-07]
[1725630848826,1.98793996,56204.0,56203.0,1.9e-07]
[1725630849288,2.05074829,56204.0,56203.0,1.9e-07]
[1725630849519,1.844007,56204.0,56203.0,1.9e-07]
[1725630849745,1.373461,56204.0,56203.0,1.9e-07]
[1725630849996,1.359461,56204.0,56203.0,1.9e-07]
[1725630850477,0.917615,56204.0,56203.0,1.9e-07]
[1725630850708,0.205923,56204.0,56203.0,0.15110019]
[1725630850937,0.561769,56204.0,56203.0,0.27660019]
[1725630851181,0.903615,56204.0,56203.0,0.27660019]
[1725630851409,0.917615,56204.0,56203.0,0.27660019]
[1725630851689,1.615307,56204.0,56203.0,1.9e-07]
[1725630851933,1.75293996,56204.0,56203.0,1.9e-07]
[1725630852162,1.75293996,56204.0,56195.0,0.00164]
[1725630852163,1.61096896,56196.0,56195.0,0.00164]
[1725630852394,2.04579442,56196.0,56195.0,0.00164]
[1725630852617,2.14579442,56196.0,56195.0,0.00164]
[1725630852855,1.78989742,56196.0,56195.0,0.00164]
[1725630853114,2.14579442,56196.0,56195.0,0.00164]
[1725630853364,2.16922738,56196.0,56195.0,0.00164]
[1725630853604,2.19222738,56196.0,56195.0,0.00164]
[1725630853859,2.53412438,56196.0,56195.0,0.00164]
[1725630854100,2.14579442,56196.0,56195.0,0.00164]
[1725630854340,2.15979442,56196.0,56195.0,0.00164]
[1725630854567,2.19403359,56196.0,56195.0,0.00164]
[1725630854795,2.18046655,56196.0,56195.0,0.00164]
[1725630855045,2.42231346,56196.0,56195.0,0.00164]
[1725630855520,2.40831346,56196.0,56195.0,0.00164]
[1725630856018,1.85967517,56196.0,56195.0,0.00164]
[1725630856246,1.6477006,56196.0,56195.0,0.00164]
[1725630856727,2.02703056,56196.0,56195.0,0.00164]
[1725630856966,2.05003056,56196.0,56195.0,0.00164]
[1725630857188,2.05003056,56196.0,56173.0,0.1632]
[1725630857189,2.04616342,56183.0,56173.0,0.1632]
[1725630857470,2.30549638,56183.0,56163.0,0.68970515]
[1725630857716,0.44425842,56168.0,56163.0,0.52650515]
[1725630857947,1.246346,56164.0,56163.0,0.4845537]
[1725630858170,1.246416,56161.0,56156.0,0.16072]
[1725630858407,1.79067442,56161.0,56156.0,0.16072]
[1725630858675,1.43455542,56161.0,56156.0,0.16072]
[1725630858935,0.1384,56183.0,56178.0,0.2791]
[1725630858936,0.014,56183.0,56178.0,0.2791]
[1725630859180,0.177999,56181.0,56178.0,0.2791]
[1725630859436,0.44425842,56191.0,56181.0,0.00056704]
[1725630859668,0.177999,56180.0,56179.0,0.00056704]
[1725630859923,0.533997,56180.0,56179.0,0.00056704]
[1725630860169,0.355998,56180.0,56179.0,0.00056704]
[1725630860415,0.533997,56180.0,56179.0,0.00056704]
[1725630860882,0.534006,56179.0,56178.0,0.2801]
[1725630861116,0.355927,56192.0,56186.0,0.1552]
[1725630861356,0.355916,56193.0,56191.0,0.00056704]
[1725630861607,0.53392,56188.0,56187.0,0.00256704]
[1725630861824,0.533911,56189.0,56188.0,0.00056704]
[1725630862325,0.355909,56194.0,56191.0,0.00056704]
[1725630862554,0.533883,56192.0,56191.0,0.00056704]
[1725630862817,0.533883,56192.0,56186.0,0.1772]
[1725630862818,0.889885,56187.0,56186.0,0.1552]
[1725630863063,0.889885,56187.0,56178.0,0.1495]
[1725630863064,0.534006,56179.0,56178.0,0.13006704]
[1725630863326,1.246014,56179.0,56178.0,0.1295]
[1725630863550,0.44425842,56181.0,56176.0,0.1491]
[1725630863551,0.534025,56177.0,56176.0,0.1491]
[1725630863775,0.890042,56177.0,56176.0,0.1491]
[1725630864544,1.246059,56177.0,56176.0,0.1491]
[1725630864783,1.246059,56177.0,56170.0,0.002]
[1725630864784,0.71211,56171.0,56170.0,0.1556]
[1725630865005,0.71211,56171.0,56164.0,0.00056704]
[1725630865006,0.534139,56165.0,56164.0,0.1656]
[1725630865236,0.1,56176.0,56170.0,0.00056704]
[1725630865719,0.1,56176.0,56168.0,0.00056704]
[1725630865720,0.534102,56169.0,56168.0,0.00056704]
[1725630865946,0.178034,56169.0,56168.0,0.00056704]
[1725630866196,0.178015,56175.0,56173.0,0.00056704]
[1725630866432,0.1,56186.0,56177.0,0.00056704]
[1725630866675,0.890027,56178.0,56177.0,0.00056704]
[1725630867138,0.534016,56178.0,56177.0,0.00056704]
[1725630867383,0.1,56186.0,56183.0,0.00056704]
[1725630867614,0.533961,56184.0,56183.0,0.00056704]
[1725630867835,0.533961,56184.0,56178.0,0.01056704]
[1725630867836,0.178002,56179.0,56178.0,0.01056704]
[1725630868091,0.35598,56183.0,56181.0,0.00056704]
[1725630868341,0.177999,56180.0,56179.0,0.1531]
[1725630868561,0.889995,56180.0,56179.0,0.1531]
[1725630869078,0.19843246,56180.0,56168.0,0.1629]
[1725630869314,0.356074,56169.0,56168.0,0.00056704]
[1725630869546,0.534102,56169.0,56168.0,0.00056704]
[1725630869785,0.89017,56169.0,56168.0,0.15016704]
[1725630870055,0.89017,56169.0,56163.0,0.150236]
[1725630870056,0.02107075,56169.0,56163.0,0.150236]
[1725630870306,1.246346,56164.0,56163.0,0.001636]
[1725630871977,0.356081,56167.0,56163.0,0.15000304]
[1725630872290,0.178049,56164.0,56163.0,0.15000304]
[1725630872507,0.534148,56164.0,56163.0,0.15200304]
[1725630872733,0.890247,56164.0,56163.0,0.15000304]
[1725630872951,0.893247,56164.0,56163.0,0.15000304]
[1725630873180,0.181049,56164.0,56163.0,0.15000304]
[1725630873418,0.01860323,56166.0,56165.0,0.55470604]
[1725630873643,0.356035,56175.0,56171.0,0.1614]
[1725630873890,0.278013,56176.0,56175.0,0.00056704]
[1725630874124,0.634036,56176.0,56175.0,0.00056704]
[1725630874607,0.65263923,56176.0,56175.0,0.00056704]
[1725630874851,0.01860323,56176.0,56175.0,0.84140874]
[1725630875079,0.355933,56191.0,56179.0,0.17026704]
[1725630875300,0.01860323,56183.0,56179.0,0.17026704]
[1725630875527,0.220552,56180.0,56179.0,0.17026704]
[1725630875765,0.932548,56180.0,56179.0,0.1497]
[1725630876016,0.534034,56176.0,56175.0,0.29566704]
[1725630876250,0.890057,56176.0,56175.0,0.29566704]
[1725630878163,0.890057,56176.0,56175.0,0.17476704]
[1725630879377,0.890057,56176.0,56175.0,0.1542]
[1725630879612,0.890057,56176.0,56175.0,0.1642]
[1725630879892,1.246898,56176.0,56175.0,0.1542]
[1725630880121,1.246898,56176.0,56175.0,0.1642]
[1725630880359,0.890875,56176.0,56175.0,0.1542]
[1725630880598,0.356841,56176.0,56169.0,0.16126704]
[1725630880821,0.890152,56170.0,56169.0,0.18126704]
[1725630881282,0.178018,56174.0,56173.0,0.00056704]
[1725630881503,0.89009,56174.0,56173.0,0.00056704]
[1725630881749,0.534054,56174.0,56173.0,0.00056704]
[1725630881998,0.534054,56174.0,56171.0,0.02]
[1725630881999,0.181832,56176.0,56175.0,0.00056704]
[1725630882255,0.003818,56176.0,56175.0,0.15486704]
[1725630882762,0.000818,56176.0,56175.0,0.15486704]
[1725630882987,0.000818,56176.0,56175.0,0.29426704]
[1725630883467,0.178829,56176.0,56175.0,0.29426704]
[1725630883732,0.000818,56176.0,56175.0,0.29426704]
[1725630883962,0.001818,56176.0,56175.0,0.29426704]
[1725630884189,0.001818,56176.0,56175.0,1.18434204]
[1725630884441,0.001818,56176.0,56175.0,1.361853]
[1725630884706,0.000818,56176.0,56175.0,1.8550683]
[1725630884944,0.000818,56176.0,56175.0,1.32352734]
[1725630885181,0.000818,56176.0,56175.0,0.96749734]
[1725630885410,0.000818,56176.0,56175.0,0.29626704]
[1725630886091,0.001818,56176.0,56175.0,0.47428204]
[1725630886343,0.001818,56176.0,56175.0,0.29626704]
[1725630886588,0.001818,56176.0,56175.0,0.83031204]
[1725630886828,0.000818,56176.0,56175.0,0.83031204]
[1725630887057,0.001818,56176.0,56175.0,1.26937324]
[1725630887425,0.001818,56176.0,56175.0,0.91334324]
[1725630887726,0.000818,56176.0,56175.0,0.91334324]
[1725630888183,0.000818,56176.0,56175.0,1.26937324]
[1725630888401,0.000818,56176.0,56175.0,0.91334324]
[1725630889059,0.356841,56176.0,56175.0,0.1543]
[1725630889294,0.534082,56171.0,56170.0,0.17546704]
[1725630889529,0.001818,56176.0,56175.0,0.00056704]
[1725630889741,0.001818,56176.0,56175.0,0.70891204]
[1725630889957,0.000818,56176.0,56175.0,0.46137764]
[1725630890166,0.000818,56176.0,56175.0,0.28336264]
[1725630890385,0.001818,56176.0,56175.0,0.28336264]
[1725630890610,0.001818,56176.0,56175.0,0.81740764]
[1725630890836,0.000818,56176.0,56175.0,0.81740764]
[1725630891059,0.178829,56176.0,56175.0,0.28136264]
[1725630891282,0.000818,56176.0,56175.0,0.17486704]
[1725630891568,1.246898,56176.0,56175.0,0.17486704]
[1725630891812,1.246898,56176.0,56175.0,0.00056704]
[1725630892249,1.246105,56175.0,56174.0,0.01]
[1725630892463,1.246105,56175.0,56174.0,0.01056704]
[1725630892692,1.246147,56173.0,56172.0,0.01056704]
[1725630892932,0.890105,56173.0,56172.0,0.02056704]
[1725630893150,1.246147,56173.0,56172.0,0.00056704]
[1725630893368,0.178027,56171.0,56170.0,0.17186704]
[1725630893580,0.178027,56171.0,56170.0,0.00056704]
[1725630893581,1.246192,56171.0,56170.0,0.00056704]
[1725630893805,1.246192,56171.0,56169.0,0.02]
[1725630893806,0.890152,56170.0,56169.0,0.00056704]
[1725630894028,1.246213,56170.0,56169.0,0.00056704]
[1725630894232,0.05191157,56175.0,56165.0,0.1596]
[1725630894233,0.49616999,56174.0,56167.0,0.00056704]
[1725630894458,0.49616999,56174.0,56163.0,0.011636]
[1725630894459,0.890247,56164.0,56163.0,0.011636]
[1725630894664,0.890247,56164.0,56163.0,0.001636]
[1725630894665,1.246346,56164.0,56163.0,0.001636]
[1725630894900,1.92222756,56164.0,56163.0,0.001636]
[1725630895117,2.34197934,56164.0,56163.0,0.001636]
[1725630895859,2.49771406,56164.0,56163.0,0.001636]
[1725630896083,2.92348481,56164.0,56163.0,0.001636]
[1725630896306,2.36988943,56164.0,56163.0,0.001636]
[1725630896744,3.74744742,56164.0,56163.0,1e-06]
[1725630897004,0.178084,56153.0,56152.0,0.00162]
[1725630897216,4.96921079,56153.0,56152.0,0.00162]
[1725630897430,1.25606996,56151.0,56150.0,0.00162]
[1725630897654,3.95268631,56151.0,56150.0,0.00162]
[1725630897938,4.17240031,56151.0,56150.0,0.00162]
[1725630898144,3.91899831,56151.0,56150.0,0.00162]
[1725630898357,3.36537682,56151.0,56150.0,0.00162]
[1725630898799,1.53321292,56151.0,56150.0,0.00162]
[1725630899050,1.59554107,56151.0,56150.0,0.00162]
[1725630899291,1.465737,56151.0,56150.0,0.00162]
[1725630899527,1.56951656,56151.0,56150.0,0.00162]
[1725630899768,1.465737,56151.0,56150.0,0.00162]
[1725630899991,1.83280572,56151.0,56150.0,0.00162]
[1725630900228,1.00134172,56151.0,56150.0,0.00162]
[1725630900454,0.634273,56151.0,56150.0,0.00162]
[1725630900679,1.004455,56151.0,56150.0,0.00162]
[1725630901108,2.29990444,56151.0,56150.0,0.00162]
[1725630901313,2.29990444,56151.0,56138.0,0.00164]
[1725630901314,0.89990296,56150.0,56149.0,1e-06]
[1725630901570,2.67850844,56150.0,56149.0,1e-06]
[1725630901815,0.54374296,56147.0,56138.0,0.00164]
[1725630902023,2.22432673,56147.0,56138.0,0.00164]
[1725630902234,2.42498521,56147.0,56138.0,0.00164]
[1725630902463,4.01457986,56147.0,56138.0,0.00164]
[1725630902677,1.61259396,56139.0,56138.0,1e-06]
[1725630902898,0.53454,56123.0,56119.0,0.00056704]
[1725630903117,0.65149322,56123.0,56119.0,0.00256704]
[1725630903356,0.356274,56137.0,56123.0,0.01056704]
[1725630903577,0.356274,56137.0,56134.0,0.00056704]
[1725630903578,0.02792534,56137.0,56134.0,0.00056704]
[1725630903794,0.44425842,56145.0,56137.0,0.00056704]
[1725630904097,0.014,56147.0,56145.0,0.00056704]
[1725630904303,0.178083,56154.0,56149.0,0.178096]
[1725630904529,0.178083,56154.0,56147.0,0.509606]
[1725630904530,0.44425842,56161.0,56147.0,0.1534]
[1725630904749,0.1781,56148.0,56147.0,0.1534]
[1725630904966,0.44425842,56161.0,56147.0,0.1534]
[1725630904967,0.44425842,56161.0,56151.0,0.00056704]
[1725630905178,0.534292,56149.0,56148.0,0.00056704]
[1725630905395,0.44425842,56161.0,56150.0,0.002]
[1725630905608,0.35615,56157.0,56155.0,0.00056704]
[1725630905834,0.09433887,56170.0,56161.0,0.00056704]
[1725630906054,0.09433887,56170.0,56157.0,0.01]
[1725630906055,0.178069,56158.0,56157.0,0.01]
[1725630906283,0.80034242,56167.0,56156.0,0.1607]
[1725630906284,0.178072,56157.0,56156.0,0.1607]
[1725630906521,0.35609,56166.0,56159.0,0.00056704]
[1725630906778,0.178062,56160.0,56159.0,0.00056704]
[1725630906956,0.534187,56160.0,56159.0,0.00056704]
[1725630907164,0.178062,56160.0,56159.0,0.00056704]
[1725630907381,0.356089,56166.0,56164.0,0.00056704]
[1725630907598,0.02791101,56174.0,56161.0,0.02]
[1725630907599,0.534168,56162.0,56161.0,0.01]
[1725630907826,0.89028,56162.0,56161.0,0.01]
[1725630908049,0.534168,56162.0,56161.0,0.01056704]
[1725630908281,0.534168,56162.0,56161.0,0.02056704]
[1725630908491,0.89028,56162.0,56161.0,0.02]
[1725630908703,0.534187,56160.0,56159.0,0.01]
[1725630908913,0.890312,56160.0,56159.0,0.01]
[1725630909123,0.534187,56160.0,56159.0,0.02056704]
[1725630909338,0.534187,56160.0,56156.0,0.1607]
[1725630909339,0.01860323,56163.0,56162.0,0.02056704]
[1725630909585,0.01860323,56163.0,56162.0,0.29866704]
[1725630909811,0.01860323,56163.0,56162.0,0.47872304]
[1725630910049,0.01860323,56163.0,56162.0,1.59473184]
[1725630910272,0.01860323,56163.0,56162.0,0.83483504]
[1725630910529,0.01860323,56163.0,56162.0,0.47872304]
[1725630910771,0.01860323,56163.0,56162.0,0.83483504]
[1725630911005,0.01960323,56163.0,56162.0,1.54705904]
[1725630911226,0.042553,56170.0,56169.0,0.83336904]
[1725630911442,0.042553,56170.0,56169.0,0.91670594]
[1725630911679,0.576644,56170.0,56169.0,0.29926704]
[1725630911887,0.398614,56170.0,56169.0,0.29726704]
[1725630912099,0.042553,56170.0,56169.0,0.29926704]
[1725630912314,0.220583,56170.0,56169.0,0.29926704]
[1725630912546,0.042553,56170.0,56169.0,0.29926704]
[1725630912767,0.042553,56170.0,56169.0,0.50722774]
[1725630912991,0.042553,56170.0,56169.0,1.0388067]
[1725630913221,0.042553,56170.0,56169.0,1.3948747]
[1725630913895,0.000818,56176.0,56175.0,0.536045]
[1725630914106,0.000818,56176.0,56175.0,1.375453]
[1725630914343,0.000818,56176.0,56175.0,2.33628672]
[1725630914566,0.000818,56176.0,56175.0,2.68231672]
[1725630914784,0.000818,56176.0,56175.0,1.8820283]
[1725630915005,0.00082,56195.0,56194.0,0.91233904]
[1725630915213,0.00082,56195.0,56194.0,0.29576704]
[1725630915923,0.178771,56195.0,56194.0,0.37673304]
[1725630916154,0.178771,56195.0,56194.0,0.29376704]
[1725630916378,1.24648,56195.0,56194.0,0.1475]
[1725630916585,0.890577,56195.0,56194.0,0.1475]
[1725630916826,0.890577,56195.0,56194.0,0.16806704]
[1725630917110,0.00082,56217.0,56195.0,0.00056704]
[1725630917324,0.00082,56217.0,56216.0,0.82942204]
[1725630917556,0.00082,56217.0,56216.0,1.18519204]
[1725630917778,0.00082,56217.0,56216.0,1.30371124]
[1725630918006,0.00082,56217.0,56216.0,0.94794124]
[1725630918258,0.00082,56217.0,56216.0,0.41428624]
[1725630918519,0.00082,56217.0,56216.0,0.29576704]
[1725630918520,0.178702,56217.0,56216.0,0.29576704]
[1725630918740,0.534466,56217.0,56216.0,0.29576704]
[1725630918980,0.534466,56217.0,56216.0,0.30776704]
[1725630918981,0.00182,56217.0,56216.0,0.30776704]
[1725630919225,0.00182,56217.0,56216.0,1.016933]
[1725630919453,0.00182,56217.0,56216.0,1.87459214]
[1725630919660,0.00182,56217.0,56216.0,1.89759214]
[1725630920093,0.00182,56217.0,56216.0,2.25336214]
[1725630920304,0.00082,56220.0,56219.0,1.26769504]
[1725630920532,0.00082,56220.0,56219.0,1.750006]
[1725630920739,0.00082,56220.0,56219.0,1.92556626]
[1725630921160,0.00082,56220.0,56219.0,2.29131726]
[1725630921371,0.355612,56241.0,56232.0,0.00056704]
[1725630921582,0.177823,56236.0,56232.0,0.28436704]
[1725630921854,0.355633,56238.0,56232.0,0.30436704]
[1725630922084,0.177828,56234.0,56232.0,0.35278754]
[1725630922508,0.177828,56234.0,56230.0,0.179838]
[1725630922509,0.533512,56231.0,56230.0,0.02056704]
[1725630922745,0.177837,56231.0,56230.0,0.02056704]
[1725630923487,0.000817,56240.0,56232.0,0.20040104]
[1725630923716,0.000817,56240.0,56232.0,0.70717004]
[1725630923924,0.000817,56240.0,56232.0,1.41850804]
[1725630924146,0.000817,56240.0,56232.0,1.32368984]
[1725630924364,0.000817,56240.0,56232.0,0.79018684]
[1725630924583,0.000817,56240.0,56232.0,1.4992008]
[1725630924793,0.000817,56240.0,56239.0,0.19837904]
[1725630925006,0.000817,56240.0,56239.0,1.36164]
[1725630925245,0.000817,56240.0,56239.0,1.91782526]
[1725630926171,0.000817,56240.0,56239.0,0.29906704]
[1725630926379,0.000817,56240.0,56239.0,0.83250404]
[1725630926589,0.000817,56240.0,56239.0,0.47687904]
[1725630926804,0.000817,56240.0,56239.0,0.83250404]
[1725630927059,0.000817,56240.0,56239.0,1.18812904]
[1725630927271,0.000817,56240.0,56239.0,1.34250554]
[1725630927494,0.000817,56240.0,56239.0,0.29906704]
[1725630927747,0.355618,56240.0,56239.0,0.18956704]
[1725630927952,0.533398,56243.0,56242.0,0.01056704]
[1725630928420,0.533398,56243.0,56242.0,0.02056704]
[1725630928624,0.533427,56240.0,56239.0,0.009]
[1725630928836,0.889045,56240.0,56239.0,0.009]
[1725630929066,0.79983842,56247.0,56235.0,0.01056704]
[1725630929277,0.44425842,56237.0,56229.0,0.01056704]
[1725630929512,0.1,56236.0,56229.0,0.01]
[1725630929788,0.533523,56230.0,56229.0,0.01]
[1725630929998,0.533523,56230.0,56229.0,0.01056704]
[1725630929999,0.177841,56230.0,56229.0,0.01056704]
[1725630930222,0.355655,56235.0,56229.0,0.02056704]
[1725630930436,0.1,56236.0,56229.0,0.02056704]
[1725630930656,0.177841,56230.0,56229.0,0.02056704]
[1725630930872,0.533523,56230.0,56229.0,0.02056704]
[1725630931536,0.889205,56230.0,56229.0,0.02056704]
[1725630931758,0.533523,56230.0,56229.0,0.02056704]
[1725630932002,0.533523,56230.0,56229.0,0.02256704]
[1725630932209,0.535523,56230.0,56229.0,0.02256704]
[1725630932446,0.535523,56230.0,56229.0,0.02056704]
[1725630932447,0.891205,56230.0,56229.0,0.02056704]
[1725630932652,0.889205,56230.0,56229.0,0.02056704]
[1725630932896,0.1284,56226.0,56217.0,0.02056704]
[1725630933097,0.177882,56217.0,56216.0,0.01]
[1725630933311,0.889425,56216.0,56215.0,0.02]
[1725630933525,0.889425,56216.0,56215.0,0.02056704]
[1725630934373,0.355728,56223.0,56213.0,0.01]
[1725630934658,0.355728,56223.0,56212.0,0.01056704]
[1725630934659,0.533683,56213.0,56212.0,0.02]
[1725630934876,0.44425842,56220.0,56210.0,0.01]
[1725630934877,0.533703,56211.0,56210.0,0.01]
[1725630935507,0.355784,56214.0,56211.0,0.01256704]
[1725630935730,0.533675,56214.0,56213.0,0.02056704]
[1725630935954,0.177886,56216.0,56215.0,0.01]
[1725630936192,0.889426,56216.0,56215.0,0.01]
[1725630936603,0.889426,56216.0,56215.0,0.012]
[1725630937005,0.177886,56216.0,56215.0,0.022]
[1725630937224,0.177886,56216.0,56215.0,0.02]
[1725630937225,0.889426,56216.0,56215.0,0.02]
[1725630937439,0.177891,56214.0,56213.0,0.02256704]
[1725630937659,0.889457,56214.0,56213.0,0.02056704]
[1725630937863,0.889457,56214.0,56213.0,0.00056704]
[1725630938108,0.455734,56222.0,56220.0,0.00056704]
[1725630938109,0.1,56222.0,56220.0,0.00056704]
[1725630938334,0.533607,56221.0,56220.0,0.00056704]
[1725630938584,0.277869,56221.0,56220.0,0.00056704]
[1725630938832,0.633607,56221.0,56220.0,0.00056704]
[1725630939289,0.633607,56221.0,56217.0,0.02]
[1725630939290,0.0186227,56226.0,56225.0,0.00056704]
[1725630939523,0.177844,56229.0,56227.0,0.00056704]
[1725630939752,0.02787905,56235.0,56227.0,0.00056704]
[1725630939753,0.177847,56228.0,56227.0,0.00056704]
[1725630939964,0.0186201,56235.0,56221.0,0.002]
[1725630939965,0.533598,56222.0,56221.0,0.01]
[1725630940176,0.35577,56216.0,56215.0,0.02056704]
[1725630940402,1.245195,56216.0,56215.0,0.02056704]
[1725630940608,1.245195,56216.0,56215.0,0.01]
[1725630940609,0.533655,56216.0,56215.0,0.01]
[1725630940836,0.177891,56214.0,56213.0,0.02056704]
[1725630941072,0.533674,56214.0,56213.0,0.02056704]
[1725630941329,0.177891,56214.0,56213.0,0.02256704]
[1725630941531,0.177885,56216.0,56215.0,0.01056704]
[1725630941742,0.53358,56224.0,56223.0,0.00056704]
[1725630941970,0.177872,56220.0,56219.0,0.02256704]
[1725630942168,0.455721,56224.0,56221.0,0.002]
[1725630942423,0.355702,56227.0,56225.0,0.00056704]
[1725630942637,0.005,56228.0,56225.0,0.00256704]
[1725630942851,0.177851,56227.0,56226.0,0.002]
[1725630943059,0.3742741,56235.0,56227.0,0.002]
[1725630943273,0.177837,56231.0,56230.0,0.00056704]
[1725630943752,0.889187,56231.0,56230.0,0.00056704]
[1725630944143,0.533512,56231.0,56230.0,0.00056704]
[1725630944363,0.533512,56231.0,56230.0,0.00256704]
[1725630944589,0.533512,56231.0,56230.0,0.00056704]
[1725630944590,0.1,56231.0,56230.0,0.00056704]
[1725630944799,0.889187,56231.0,56230.0,0.16246704]
[1725630945029,0.177837,56231.0,56230.0,0.16246704]
[1725630945248,0.3742701,56235.0,56234.0,0.002]
[1725630945452,1.0077451,56235.0,56234.0,0.002]
[1725630945680,0.533484,56234.0,56233.0,0.002]
[1725630945926,0.533484,56234.0,56230.0,0.16046704]
[1725630945927,0.98914,56234.0,56231.0,0.002]
[1725630946138,0.177837,56231.0,56230.0,0.16046704]
[1725630946381,0.177837,56231.0,56230.0,0.16246704]
[1725630946612,0.533512,56231.0,56230.0,0.16046704]
[1725630947078,0.1186201,56235.0,56231.0,0.00056704]
[1725630947079,0.0186201,56235.0,56231.0,0.00056704]
[1725630947328,0.0186201,56235.0,56230.0,0.1599]
[1725630947329,0.1964451,56235.0,56234.0,0.00056704]
[1725630947576,0.5520951,56235.0,56234.0,0.00056704]
[1725630947821,0.0186201,56235.0,56234.0,0.00056704]
[1725630948047,0.1964451,56235.0,56234.0,0.00056704]
[1725630948274,0.5520951,56235.0,56234.0,0.00056704]
[1725630948516,0.5520951,56235.0,56233.0,0.01]
[1725630948517,0.533484,56234.0,56233.0,0.01]
[1725630948742,0.0186201,56235.0,56233.0,0.02256704]
[1725630949072,0.533484,56234.0,56233.0,0.02]
[1725630949305,0.88914,56234.0,56233.0,0.02]
[1725630949536,0.533484,56234.0,56233.0,0.02]
[1725630949765,0.533484,56234.0,56233.0,0.01]
[1725630950239,0.88914,56234.0,56233.0,0.01]
[1725630950706,0.88914,56234.0,56232.0,0.01]
[1725630950707,0.177831,56233.0,56232.0,0.01]
[1725630951190,0.0186201,56235.0,56228.0,0.01]
[1725630951191,0.533532,56229.0,56228.0,0.01]
[1725630951425,0.533532,56229.0,56220.0,0.177871]
[1725630951426,0.177866,56222.0,56221.0,0.02056704]
[1725630951660,0.533607,56221.0,56220.0,0.01]
[1725630951897,0.889345,56221.0,56220.0,0.01]
[1725630952146,0.44425842,56223.0,56214.0,0.00056704]
[1725630952393,0.44425842,56223.0,56214.0,0.02056704]
[1725630952394,0.533664,56215.0,56214.0,0.02056704]
[1725630952659,0.88944,56215.0,56214.0,0.02056704]
[1725630952915,0.533664,56215.0,56214.0,0.02056704]
[1725630953651,0.533664,56215.0,56213.0,0.17959904]
[1725630953652,0.533674,56214.0,56213.0,0.17959904]
[1725630953870,0.533674,56214.0,56213.0,0.01219904]
[1725630954307,0.533674,56214.0,56213.0,0.02219904]
[1725630954734,0.533674,56214.0,56213.0,0.011632]
[1725630954952,0.889457,56214.0,56213.0,0.011632]
[1725630955181,0.889457,56214.0,56213.0,0.001632]
[1725630955435,1.4517857,56214.0,56213.0,0.001632]
[1725630956055,1.46284,56214.0,56213.0,0.001632]
[1725630956275,1.34524,56214.0,56213.0,0.001632]
[1725630956571,1.858023,56214.0,56213.0,0.001632]
[1725630956796,1.9576178,56214.0,56213.0,0.006632]
[1725630956938,1.9576178,56214.0,56205.0,0.15]
[1725630957165,2.04671888,56206.0,56205.0,0.15]
[1725630957375,2.14671888,56206.0,56205.0,0.15]
[1725630957584,1.79088588,56206.0,56205.0,0.15]
[1725630958253,1.79088588,56206.0,56205.0,0.151]
[1725630958460,2.42121888,56206.0,56205.0,0.151]
[1725630958664,2.86938184,56206.0,56205.0,0.13238]
[1725630958777,2.98688935,56206.0,56205.0,0.13238]